fUSD/lending_fUSD_20250120
["ID","MTS","AMOUNT","RATE_DAILY","PERIOD"]
[349647288,1737355834956,-500.0,0.00020974,2]
[349647290,1737355834967,-500.0,0.00020974,2]
[349647292,1737355834977,-92.60383621,0.00020974,2]
[349647448,1737355837530,-170.82950116,0.00020874,2]
[349647449,1737355837541,-500.0,0.00020973,2]
[349647451,1737355837554,-1861.83618084,0.00020974,2]
[349647452,1737355837570,-68.20998295,0.00020974,2]
[349647453,1737355837580,-740.09,0.00020974,2]
[349647454,1737355837590,-517.73,0.00020974,2]
[349647455,1737355837600,-500.0,0.00020974,2]
[349647456,1737355837610,-500.0,0.00020974,2]
[349647457,1737355837619,-489.9805093,0.00020974,2]
[349647458,1737355837629,-1007.06,0.00020974,2]
[349647459,1737355837639,-500.0,0.00020974,2]
[349647460,1737355837648,-382.80282042,0.00020974,2]
[349647461,1737355837811,-1547.21,0.00020973,2]
[349647462,1737355837822,-117.19717958,0.00020974,2]
[349647463,1737355837831,-505.18258187,0.00020974,2]
[349647464,1737355837841,-754.400819,0.00020974,2]
[349647465,1737355837851,-500.0,0.00020974,2]
[349647466,1737355837861,-500.0,0.00020974,2]
[349647467,1737355837871,-500.0,0.00020974,2]
[349647468,1737355837880,-506.28701953,0.00020974,2]
[349647469,1737355837890,-500.0,0.00020974,2]
[349647470,1737355837900,-500.0,0.00020974,2]
[349647471,1737355837909,-500.0,0.00020974,2]
[349647472,1737355837919,-868.12,0.00020974,2]
[349647473,1737355837930,-1203.52,0.00020974,2]
[349647474,1737355837939,-500.0,0.00020974,2]
[349647475,1737355837949,-500.0,0.00020974,2]
[349647476,1737355837959,-500.0,0.00020974,2]
[349647477,1737355837969,-500.0,0.00020974,2]
[349647478,1737355837980,-855.54,0.00020974,2]
[349647479,1737355837991,-609.47,0.00020974,2]
[349647480,1737355838002,-500.0,0.00020974,2]
[349647481,1737355838013,-500.0,0.00020974,2]
[349647482,1737355838024,-500.0,0.00020974,2]
[349647483,1737355838035,-1010.31,0.00020974,2]
[349647484,1737355838046,-500.0,0.00020974,2]
[349647485,1737355838065,-500.0,0.00020974,2]
[349647486,1737355838077,-1303.77,0.00020974,2]
[349647487,1737355838089,-679.85,0.00020974,2]
[349647488,1737355838100,-500.0,0.00020974,2]
[349647489,1737355838110,-500.0,0.00020974,2]
[349647490,1737355838121,-500.0,0.00020974,2]
[349647491,1737355838133,-628.48,0.00020974,2]
[349647492,1737355838144,-565.11,0.00020974,2]
[349647493,1737355838154,-508.41012881,0.00020974,2]
[349647494,1737355838165,-500.0,0.00020974,2]
[349647495,1737355838176,-1358.26,0.00020974,2]
[349647496,1737355838187,-1355.87,0.00020974,2]
[349647497,1737355838197,-500.0,0.00020974,2]
[349647498,1737355838208,-1205.56,0.00020974,2]
[349647499,1737355838219,-517.22629333,0.00020974,2]
[349647500,1737355838229,-1049.56,0.00020974,2]
[349647501,1737355838240,-500.0,0.00020974,2]
[349647503,1737355838249,-518.35465003,0.00020974,2]
[349647505,1737355838260,-500.0,0.00020974,2]
[349647507,1737355838270,-946.84,0.00020974,2]
[349647509,1737355838281,-500.0,0.00020974,2]
[349647511,1737355838292,-500.0,0.00020974,2]
[349647513,1737355838311,-500.0,0.00020974,2]
[349647515,1737355838321,-500.0,0.00020974,2]
[349647517,1737355838331,-500.0,0.00020974,2]
[349647519,1737355838346,-1085.47,0.00020974,2]
[349647521,1737355838356,-506.32862081,0.00020974,2]
[349647523,1737355838366,-1254.5,0.00020974,2]
[349647525,1737355838375,-500.0,0.00020974,2]
[349647527,1737355838385,-534.25096694,0.00020974,2]
[349647528,1737355838394,-1151.86,0.00020974,2]
[349647529,1737355838404,-1525.59,0.00020974,2]
[349647531,1737355838414,-500.0,0.00020974,2]
[349647533,1737355838424,-880.11,0.00020974,2]
[349647535,1737355838435,-734.62,0.00020974,2]
[349647537,1737355838446,-500.0,0.00020974,2]
[349647539,1737355838456,-788.34,0.00020974,2]
[349647541,1737355838466,-1657.05,0.00020974,2]
[349647543,1737355838475,-500.0,0.00020974,2]
[349647546,1737355838486,-500.0,0.00020974,2]
[349647547,1737355838495,-178.620703,0.00020974,2]
[349647549,1737355838505,-500.0,0.00020974,2]
[349647551,1737355838514,-1192.18,0.00020974,2]
[349647553,1737355838524,-500.0,0.00020974,2]
[349647555,1737355838534,-639.32,0.00020974,2]
[349647557,1737355838544,-716.92,0.00020974,2]
[349647559,1737355838559,-500.0,0.00020974,2]
[349647561,1737355838569,-500.0,0.00020974,2]
[349647563,1737355838578,-500.0,0.00020974,2]
[349647565,1737355838587,-815.8,0.00020974,2]
[349647567,1737355838597,-1378.0,0.00020974,2]
[349647569,1737355838606,-638.63,0.00020974,2]
[349647571,1737355838616,-912.19,0.00020974,2]
[349647573,1737355838625,-500.0,0.00020974,2]
[349647575,1737355838635,-1212.09,0.00020974,2]
[349647577,1737355838645,-1097.61,0.00020974,2]
[349647579,1737355838655,-548.42,0.00020974,2]
[349647581,1737355838666,-786.49,0.00020974,2]
[349647583,1737355838676,-829.69,0.00020974,2]
[349647585,1737355838687,-624.42219723,0.00020974,2]
[349647587,1737355838698,-199.58695179,0.00020974,2]
[349647589,1737355838707,-500.0,0.00020974,2]
[349647591,1737355838717,-3515.69,0.00020974,2]
[349647593,1737355838726,-500.0,0.00020974,2]
[349647595,1737355838737,-500.0,0.00020974,2]
[349647597,1737355838746,-748.77,0.00020974,2]
[349647599,1737355838755,-532.47,0.00020974,2]
[349647601,1737355838764,-500.0,0.00020974,2]
[349647603,1737355838773,-2470.1,0.00020974,2]
[349647605,1737355838782,-1671.38,0.00020974,2]
[349647607,1737355838794,-500.0,0.00020974,2]
[349647609,1737355838807,-1179.1,0.00020974,2]
[349647611,1737355838816,-1823.31,0.00020974,2]
[349647613,1737355838825,-500.0,0.00020974,2]
[349647615,1737355838835,-7711.81,0.00020974,2]
[349647617,1737355838844,-500.0,0.00020974,2]
[349647619,1737355838853,-7477.61,0.00020974,2]
[349647621,1737355838862,-595.63,0.00020974,2]
[349647623,1737355838872,-1629.88,0.00020974,2]
[349647625,1737355838882,-1254.77,0.00020974,2]
[349647627,1737355838891,-500.0,0.00020974,2]
[349647629,1737355838900,-500.0,0.00020974,2]
[349647631,1737355838910,-1945.8,0.00020974,2]
[349647633,1737355838919,-500.0,0.00020974,2]
[349647635,1737355838929,-500.0,0.00020974,2]
[349647637,1737355838939,-1170.09,0.00020974,2]
[349647639,1737355838947,-500.0,0.00020974,2]
[349647641,1737355838957,-976.62,0.00020974,2]
[349647643,1737355838967,-1122.7,0.00020974,2]
[349647645,1737355838976,-537.98,0.00020974,2]
[349647647,1737355838986,-500.0,0.00020974,2]
[349647649,1737355838995,-500.0,0.00020974,2]
[349647651,1737355839005,-500.0,0.00020974,2]
[349647653,1737355839014,-1749.4,0.00020974,2]
[349647655,1737355839023,-565.7,0.00020974,2]
[349647657,1737355839032,-537.59,0.00020974,2]
[349647659,1737355839041,-500.0,0.00020974,2]
[349647661,1737355839054,-500.0,0.00020974,2]
[349647663,1737355839063,-500.0,0.00020974,2]
[349647665,1737355839073,-500.0,0.00020974,2]
[349647667,1737355839081,-1534.38,0.00020974,2]
[349647669,1737355839091,-639.51,0.00020974,2]
[349647671,1737355839100,-500.0,0.00020974,2]
[349647673,1737355839109,-1058.62,0.00020974,2]
[349647675,1737355839119,-683.38,0.00020974,2]
[349647677,1737355839128,-770.25,0.00020974,2]
[349647679,1737355839138,-524.03,0.00020974,2]
[349647681,1737355839148,-2326.36,0.00020974,2]
[349647683,1737355839159,-526.89,0.00020974,2]
[349647685,1737355839168,-500.0,0.00020974,2]
[349647687,1737355839177,-500.0,0.00020974,2]
[349647689,1737355839187,-977.05,0.00020974,2]
[349647691,1737355839196,-4374.19,0.00020974,2]
[349647693,1737355839205,-1765.38,0.00020974,2]
[349647695,1737355839214,-500.0,0.00020974,2]
[349647696,1737355839223,-2109.24,0.00020974,2]
[349647697,1737355839233,-500.0,0.00020974,2]
[349647698,1737355839242,-535.98547637,0.00020974,2]
[349647699,1737355839252,-1318.3,0.00020974,2]
[349647700,1737355839262,-2053.24,0.00020974,2]
[349647701,1737355839271,-500.0,0.00020974,2]
[349647702,1737355839281,-500.0,0.00020974,2]
[349647703,1737355839291,-790.86,0.00020974,2]
[349647704,1737355839303,-1728.48,0.00020974,2]
[349647705,1737355839312,-1253.05,0.00020974,2]
[349647706,1737355839322,-948.27,0.00020974,2]
[349647709,1737355839464,-1090.85,0.00020974,2]
[349647710,1737355839474,-500.0,0.00020974,2]
[349647712,1737355839485,-6037.36,0.00020974,2]
[349647714,1737355839495,-1259.22,0.00020974,2]
[349647715,1737355839505,-500.0,0.00020974,2]
[349647716,1737355839514,-500.0,0.00020974,2]
[349647717,1737355839524,-559.27,0.00020974,2]
[349647718,1737355839533,-162.597982,0.00020974,2]
[349647719,1737355839542,-556.12771826,0.00020974,2]
[349647720,1737355839555,-159.550045,0.00020974,2]
[349647721,1737355839565,-547.06,0.00020974,2]
[349647723,1737355839574,-3009.8,0.00020974,2]
[349647724,1737355839584,-500.0,0.00020974,2]
[349647725,1737355839594,-500.0,0.00020974,2]
[349647726,1737355839603,-500.0,0.00020974,2]
[349647727,1737355839613,-500.0,0.00020974,2]
[349647728,1737355839623,-500.0,0.00020974,2]
[349647729,1737355839632,-500.0,0.00020974,2]
[349647730,1737355839642,-1061.48,0.00020974,2]
[349647731,1737355839651,-686.93,0.00020974,2]
[349647733,1737355839661,-2494.18,0.00020974,2]
[349647735,1737355839671,-162.122072,0.00020974,2]
[349647737,1737355839680,-500.0,0.00020974,2]
[349647739,1737355839690,-872.88,0.00020974,2]
[349647741,1737355839700,-500.0,0.00020974,2]
[349647743,1737355839710,-500.0,0.00020974,2]
[349647744,1737355839720,-500.0,0.00020974,2]
[349647745,1737355839731,-2096.23,0.00020974,2]
[349647746,1737355839741,-165.69,0.00020974,2]
[349647747,1737355839751,-1228.34,0.00020974,2]
[349647748,1737355839760,-500.0,0.00020974,2]
[349647749,1737355839769,-32.49126765,0.00020974,2]
[349647750,1737355839796,-1006.81239902,0.00020973,2]
[349647751,1737355839815,-270.48760098,0.00020973,2]
[349647752,1737355839824,-987.04873235,0.00020974,2]
[349647753,1737355839833,-500.0,0.00020974,2]
[349647754,1737355839843,-500.0,0.00020974,2]
[349647755,1737355839852,-165.611376,0.00020974,2]
[349647756,1737355839861,-740.7,0.00020974,2]
[349647757,1737355839870,-1995.48,0.00020974,2]
[349647758,1737355839879,-2681.29,0.00020974,2]
[349647759,1737355839888,-500.0,0.00020974,2]
[349647760,1737355839898,-1058.54,0.00020974,2]
[349647761,1737355839907,-3506.87,0.00020974,2]
[349647762,1737355839916,-500.0,0.00020974,2]
[349647763,1737355839925,-2342.51,0.00020974,2]
[349647764,1737355839935,-6994.9,0.00020974,2]
[349647765,1737355839944,-2124.78,0.00020974,2]
[349647766,1737355839953,-249.6770823,0.00020974,2]
[349647767,1737355839965,-250.3229177,0.00020974,2]
[349647768,1737355839974,-1009.01,0.00020974,2]
[349647769,1737355839983,-564.73,0.00020974,2]
[349647770,1737355839993,-500.0,0.00020974,2]
[349647771,1737355840002,-500.0,0.00020974,2]
[349647772,1737355840011,-738.12,0.00020974,2]
[349647773,1737355840020,-1660.21,0.00020975,2]
[349647774,1737355840030,-500.0,0.00020975,2]
[349647775,1737355840039,-784.93,0.00020975,2]
[349647776,1737355840049,-409.24115834,0.00020975,2]
[349647777,1737355840059,-500.0,0.00020975,2]
[349647778,1737355840068,-500.0,0.00020975,2]
[349647779,1737355840078,-925.91,0.00020975,2]
[349647780,1737355840087,-500.0,0.00020975,2]
[349647781,1737355840097,-566.81,0.00020975,2]
[349647782,1737355840106,-500.0,0.00020975,2]
[349647783,1737355840115,-204.49719324,0.00020983,2]
[349647784,1737355840125,-1685.75963,0.0002099,2]
[349647785,1737355840134,-204.49719324,0.00021025,2]
[349647786,1737355840143,-500.0,0.0002103,2]
[349647787,1737355840152,-204.49719324,0.00021067,2]
[349647788,1737355840163,-150.0,0.00021078,2]
[349647789,1737355840172,-204.49719324,0.00021108,2]
[349647790,1737355840182,-154.61801275,0.00021131,2]
[349647791,1737355840191,-304.55840391,0.00021147,2]
[349647792,1737355840201,-2154.2747,0.00021147,2]
[349647793,1737355840211,-19796.4251,0.00021148,2]
[349647794,1737355840220,-204.49719324,0.0002115,2]
[349647795,1737355840229,-204.49719324,0.00021192,2]
[349647796,1737355840239,-128798.87536054,0.000212,2]
[349647797,1737355840248,-1004.144,0.000212,2]
[349647798,1737355840258,-151.0,0.000212,2]
[349647799,1737355840267,-151.0,0.000212,2]
[349647800,1737355840277,-259.689979,0.000212,2]
[349647801,1737355840287,-204.49719324,0.00021233,2]
[349647802,1737355840296,-151.0,0.00021247,2]
[349647803,1737355840308,-500.0,0.00021247,2]
[349647804,1737355840318,-500.0,0.00021247,2]
[349647805,1737355840327,-500.0,0.00021247,2]
[349647806,1737355840339,-500.0,0.00021247,2]
[349647807,1737355840350,-500.0,0.00021247,2]
[349647808,1737355840360,-611.24,0.00021247,2]
[349647809,1737355840371,-500.0,0.00021247,2]
[349647810,1737355840380,-500.0,0.00021247,2]
[349647811,1737355840390,-500.0,0.00021247,2]
[349647812,1737355840400,-764.2,0.00021247,2]
[349647813,1737355840409,-200.0,0.00021247,2]
[349647814,1737355840419,-607.41,0.00021247,2]
[349647815,1737355840428,-1312.92,0.00021247,2]
[349647816,1737355840438,-500.0,0.00021247,2]
[349647817,1737355840448,-4024.38,0.00021247,2]
[349647818,1737355840458,-683.06,0.00021247,2]
[349647820,1737355840467,-1624.171378,0.00021247,2]
[349647822,1737355840476,-1664.14334352,0.00021247,2]
[349647824,1737355840488,-124.12665648,0.00021247,2]
[349647825,1737355840498,-500.0,0.00021247,2]
[349647827,1737355840507,-1145.63,0.00021247,2]
[349647829,1737355840517,-2154.87,0.00021247,2]
[349647830,1737355840527,-1427.0,0.00021247,2]
[349647831,1737355840537,-500.0,0.00021247,2]
[349647832,1737355840546,-2980.01,0.00021247,2]
[349647833,1737355840557,-1269.19,0.00021247,2]
[349647834,1737355840567,-500.0,0.00021247,2]
[349647835,1737355840576,-1760.16,0.00021247,2]
[349647836,1737355840585,-1065.49,0.00021247,2]
[349647837,1737355840595,-1054.38,0.00021247,2]
[349647838,1737355840604,-546.06,0.00021247,2]
[349647839,1737355840614,-157.705546,0.00021247,2]
[349647840,1737355840623,-2016.08,0.00021247,2]
[349647841,1737355840632,-1982.72,0.00021247,2]
[349647842,1737355840641,-155.00632278,0.00021247,2]
[349647843,1737355840650,-213.89549857,0.00021247,2]
[349647844,1737355840662,-1223.37450143,0.00021247,2]
[349647845,1737355840671,-347.42736787,0.00021247,2]
[349647846,1737355840682,-254.79,0.00021247,2]
[349647847,1737355840697,-2112.17263213,0.00021247,2]
[349647848,1737355840707,-500.0,0.00021247,2]
[349647849,1737355840716,-754.29,0.00021247,2]
[349647850,1737355840726,-695.44,0.00021247,2]
[349647851,1737355840736,-500.0,0.00021247,2]
[349647852,1737355840745,-500.0,0.00021247,2]
[349647853,1737355840754,-746.76,0.00021247,2]
[349647854,1737355840763,-645.69,0.00021247,2]
[349647855,1737355840772,-500.0,0.00021247,2]
[349647856,1737355840781,-1595.76,0.00021247,2]
[349647857,1737355840791,-1407.56,0.00021247,2]
[349647858,1737355840803,-4501.6,0.00021247,2]
[349647859,1737355840812,-4328.29,0.00021247,2]
[349647860,1737355840822,-500.0,0.00021247,2]
[349647861,1737355840831,-3493.82,0.00021247,2]
[349647862,1737355840840,-1974.03,0.00021247,2]
[349647863,1737355840849,-1372.98,0.00021247,2]
[349647864,1737355840859,-575.68,0.00021247,2]
[349647865,1737355840869,-500.0,0.00021247,2]
[349647866,1737355840878,-705.07,0.00021247,2]
[349647867,1737355840887,-551.1,0.00021247,2]
[349647868,1737355840896,-500.0,0.00021247,2]
[349647869,1737355840905,-1989.78,0.00021247,2]
[349647870,1737355840914,-500.0,0.00021247,2]
[349647871,1737355840923,-500.0,0.00021247,2]
[349647872,1737355840932,-926.39,0.00021247,2]
[349647873,1737355840941,-583.75,0.00021247,2]
[349647874,1737355840950,-1731.51,0.00021247,2]
[349647875,1737355840959,-581.9,0.00021247,2]
[349647876,1737355840968,-973.63,0.00021247,2]
[349647877,1737355840977,-500.0,0.00021247,2]
[349647878,1737355840987,-707.26,0.00021247,2]
[349647879,1737355840995,-500.0,0.00021247,2]
[349647880,1737355841004,-2696.64,0.00021247,2]
[349647881,1737355841014,-4877.87,0.00021247,2]
[349647882,1737355841023,-1547.21,0.00021247,2]
[349647883,1737355841032,-500.0,0.00021248,2]
[349647884,1737355841041,-500.0,0.00021248,2]
[349647885,1737355841054,-500.0,0.00021248,2]
[349647886,1737355841064,-500.0,0.00021248,2]
[349647887,1737355841074,-500.0,0.00021248,2]
[349647888,1737355841083,-500.0,0.00021248,2]
[349647889,1737355841092,-875.88,0.00021248,2]
[349647890,1737355841101,-500.0,0.00021248,2]
[349647891,1737355841111,-151.0,0.00021248,2]
[349647892,1737355841120,-500.0,0.00021248,2]
[349647893,1737355841129,-500.0,0.00021248,2]
[349647894,1737355841138,-500.0,0.00021248,2]
[349647895,1737355841148,-500.0,0.00021248,2]
[349647896,1737355841157,-1354.44,0.00021248,2]
[349647897,1737355841167,-500.0,0.00021248,2]
[349647898,1737355841177,-603.94,0.00021248,2]
[349647899,1737355841187,-894.41,0.00021248,2]
[349647900,1737355841196,-500.0,0.00021248,2]
[349647901,1737355841205,-715.15,0.00021248,2]
[349647902,1737355841216,-651.94,0.00021248,2]
[349647903,1737355841226,-500.0,0.00021248,2]
[349647904,1737355841235,-193.006384,0.00021248,2]
[349647905,1737355841244,-193.006384,0.00021248,2]
[349647906,1737355841253,-500.0,0.00021248,2]
[349647907,1737355841262,-193.006384,0.00021248,2]
[349647908,1737355841272,-193.006384,0.00021248,2]
[349647909,1737355841281,-1068.14,0.00021248,2]
[349647910,1737355841290,-597.34,0.00021248,2]
[349647911,1737355841299,-500.0,0.00021248,2]
[349647912,1737355841311,-732.77,0.00021248,2]
[349647913,1737355841321,-500.0,0.00021248,2]
[349647914,1737355841330,-582.3,0.00021248,2]
[349647915,1737355841341,-1283.5,0.00021248,2]
[349647916,1737355841352,-853.83,0.00021248,2]
[349647917,1737355841361,-500.0,0.00021248,2]
[349647918,1737355841370,-655.25,0.00021248,2]
[349647919,1737355841379,-604.91,0.00021248,2]
[349647920,1737355841389,-500.0,0.00021248,2]
[349647921,1737355841398,-548.92,0.00021248,2]
[349647922,1737355841407,-500.0,0.00021248,2]
[349647923,1737355841417,-500.0,0.00021248,2]
[349647924,1737355841426,-1256.42,0.00021248,2]
[349647925,1737355841437,-974.3,0.00021248,2]
[349647926,1737355841446,-500.0,0.00021248,2]
[349647927,1737355841455,-500.0,0.00021248,2]
[349647928,1737355841464,-500.0,0.00021248,2]
[349647929,1737355841473,-500.0,0.00021248,2]
[349647930,1737355841482,-500.0,0.00021248,2]
[349647931,1737355841492,-500.0,0.00021248,2]
[349647932,1737355841500,-504.42,0.00021248,2]
[349647933,1737355841510,-967.29,0.00021248,2]
[349647934,1737355841519,-500.0,0.00021248,2]
[349647935,1737355841529,-670.32,0.00021248,2]
[349647936,1737355841538,-500.0,0.00021248,2]
[349647937,1737355841547,-500.0,0.00021248,2]
[349647938,1737355841557,-500.0,0.00021248,2]
[349647939,1737355841567,-681.01,0.00021248,2]
[349647940,1737355841576,-500.0,0.00021248,2]
[349647941,1737355841585,-500.0,0.00021248,2]
[349647942,1737355841594,-500.0,0.00021248,2]
[349647943,1737355841603,-891.77,0.00021248,2]
[349647944,1737355841612,-648.18,0.00021248,2]
[349647945,1737355841622,-500.0,0.00021248,2]
[349647946,1737355841631,-500.0,0.00021248,2]
[349647947,1737355841640,-500.0,0.00021248,2]
[349647948,1737355841649,-500.0,0.00021248,2]
[349647949,1737355841658,-500.0,0.00021248,2]
[349647950,1737355841667,-1383.24,0.00021248,2]
[349647951,1737355841677,-500.0,0.00021248,2]
[349647952,1737355841686,-500.0,0.00021248,2]
[349647953,1737355841696,-500.0,0.00021248,2]
[349647954,1737355841705,-500.0,0.00021248,2]
[349647955,1737355841715,-1558.89,0.00021248,2]
[349647956,1737355841724,-500.0,0.00021248,2]
[349647957,1737355841733,-500.0,0.00021248,2]
[349647958,1737355841742,-1774.334993,0.00021248,2]
[349647959,1737355841752,-967.39,0.00021248,2]
[349647960,1737355841762,-500.0,0.00021248,2]
[349647961,1737355841771,-500.0,0.00021248,2]
[349647962,1737355841781,-288.52594679,0.00021248,2]
[349647963,1737355841790,-2022.65,0.00021248,2]
[349647964,1737355841800,-740.09,0.00021248,2]
[349647965,1737355841810,-517.73,0.00021248,2]
[349647966,1737355841819,-500.0,0.00021248,2]
[349647967,1737355841829,-1007.06,0.00021248,2]
[349647968,1737355841951,-500.0,0.00021248,2]
[349647969,1737355841961,-500.0,0.00021248,2]
[349647970,1737355841970,-500.0,0.00021248,2]
[349647971,1737355841979,-754.400819,0.00021248,2]
[349647972,1737355841989,-500.0,0.00021248,2]
[349647973,1737355841998,-500.0,0.00021248,2]
[349647974,1737355842007,-868.12,0.00021248,2]
[349647975,1737355842017,-1203.52,0.00021248,2]
[349647976,1737355842026,-500.0,0.00021248,2]
[349647977,1737355842035,-514.49075555,0.00021248,2]
[349647978,1737355842045,-500.0,0.00021248,2]
[349647979,1737355842056,-500.0,0.00021248,2]
[349647980,1737355842065,-855.54,0.00021248,2]
[349647981,1737355842074,-609.47,0.00021248,2]
[349647982,1737355842083,-500.0,0.00021248,2]
[349647983,1737355842093,-500.0,0.00021248,2]
[349647984,1737355842102,-1010.31,0.00021248,2]
[349647985,1737355842111,-500.0,0.00021248,2]
[349647986,1737355842120,-1303.77,0.00021248,2]
[349647987,1737355842129,-679.85,0.00021248,2]
[349647988,1737355842139,-326.8913437,0.00021248,2]
[349647989,1737355842148,-500.0,0.00021248,2]
[349647990,1737355842157,-628.48,0.00021248,2]
[349647991,1737355842166,-565.11,0.00021248,2]
[349647992,1737355842175,-151.0,0.00021248,2]
[349647993,1737355842184,-151.0,0.00021248,2]
[349647994,1737355842193,-1358.26,0.00021248,2]
[349647995,1737355842203,-1355.87,0.00021248,2]
[349647996,1737355842211,-500.0,0.00021248,2]
[349647997,1737355842220,-1205.56,0.00021248,2]
[349647998,1737355842229,-1049.56,0.00021248,2]
[349647999,1737355842239,-946.84,0.00021248,2]
[349648000,1737355842248,-500.0,0.00021248,2]
[349648001,1737355842257,-500.0,0.00021248,2]
[349648002,1737355842266,-500.0,0.00021248,2]
[349648003,1737355842275,-500.0,0.00021248,2]
[349648004,1737355842284,-1085.47,0.00021248,2]
[349648005,1737355842293,-1254.5,0.00021248,2]
[349648006,1737355842303,-500.0,0.00021248,2]
[349648007,1737355842312,-1151.86,0.00021248,2]
[349648008,1737355842321,-1525.59,0.00021248,2]
[349648009,1737355842331,-500.0,0.00021248,2]
[349648010,1737355842340,-880.11,0.00021248,2]
[349648011,1737355842349,-734.62,0.00021248,2]
[349648012,1737355842359,-500.0,0.00021248,2]
[349648013,1737355842370,-788.34,0.00021248,2]
[349648014,1737355842379,-1657.05,0.00021248,2]
[349648015,1737355842389,-500.0,0.00021248,2]
[349648017,1737355842399,-500.0,0.00021248,2]
[349648018,1737355842409,-500.0,0.00021248,2]
[349648020,1737355842418,-1192.18,0.00021248,2]
[349648021,1737355842427,-639.32,0.00021248,2]
[349648022,1737355842438,-716.92,0.00021248,2]
[349648023,1737355842447,-500.0,0.00021248,2]
[349648024,1737355842456,-500.0,0.00021248,2]
[349648025,1737355842465,-815.8,0.00021248,2]
[349648026,1737355842477,-1378.0,0.00021248,2]
[349648027,1737355842486,-638.63,0.00021248,2]
[349648028,1737355842497,-912.19,0.00021248,2]
[349648029,1737355842506,-500.0,0.00021248,2]
[349648030,1737355842515,-1212.09,0.00021248,2]
[349648031,1737355842525,-1097.61,0.00021248,2]
[349648032,1737355842534,-151.0,0.00021248,2]
[349648033,1737355842543,-151.0,0.00021248,2]
[349648034,1737355842554,-548.42,0.00021248,2]
[349648035,1737355842563,-151.0,0.00021248,2]
[349648036,1737355842573,-786.49,0.00021248,2]
[349648037,1737355842582,-829.69,0.00021248,2]
[349648038,1737355842592,-500.0,0.00021248,2]
[349648039,1737355842601,-3515.69,0.00021248,2]
[349648040,1737355842610,-500.0,0.00021248,2]
[349648041,1737355842619,-500.0,0.00021248,2]
[349648043,1737355842628,-748.77,0.00021248,2]
[349648044,1737355842637,-532.47,0.00021248,2]
[349648045,1737355842647,-500.0,0.00021248,2]
[349648046,1737355842656,-2470.1,0.00021248,2]
[349648049,1737355842666,-1671.38,0.00021248,2]
[349648051,1737355842675,-500.0,0.00021248,2]
[349648053,1737355842685,-1179.1,0.00021248,2]
[349648055,1737355842694,-1823.31,0.00021248,2]
[349648056,1737355842704,-635.20783171,0.00021248,2]
[349648058,1737355842714,-7711.81,0.00021248,2]
[349648059,1737355842723,-500.0,0.00021248,2]
[349648060,1737355842734,-7477.61,0.00021248,2]
[349648061,1737355842744,-595.63,0.00021248,2]
[349648062,1737355842753,-622.90271335,0.00021248,2]
[349648063,1737355843001,-313.719998,0.00020974,2]
[349648064,1737355843012,-83.00194163,0.00020974,2]
[349648065,1737355843021,-151.0,0.00021148,2]
[349648066,1737355843030,-221.78178009,0.00021247,2]